fUST/lending_fUST_20240608
["ID","MTS","AMOUNT","RATE_DAILY","PERIOD"]
[328788894,1717788465239,-411.50116973,0.00021917,3]
[328788895,1717788465263,-504.17947893,0.00021917,2]
[328788896,1717788465285,-1836.97,0.00021917,3]
[328788897,1717788465306,-512.60858182,0.00021917,3]
[328788898,1717788465328,-500.0,0.00021917,3]
[328788899,1717788465349,-500.0,0.00021917,3]
[328788900,1717788465371,-1241.2,0.00021917,3]
[328788901,1717788465394,-1982.19,0.00021917,3]
[328788902,1717788465416,-2479.26,0.00021917,3]
[328788903,1717788465438,-500.0,0.00021917,3]
[328788904,1717788465460,-222.868002,0.00021917,2]
[328788905,1717788465481,-222.868002,0.00021917,2]
[328788906,1717788465502,-222.868002,0.00021917,2]
[328788907,1717788465536,-203.029936,0.00021917,2]
[328788908,1717788465565,-222.868002,0.00021917,2]
[328788909,1717788465591,-222.868002,0.00021917,2]
[328788910,1717788465617,-500.0,0.00021917,3]
[328788911,1717788465641,-1105.42,0.00021917,3]
[328788912,1717788465667,-667.86,0.00021917,3]
[328788913,1717788465690,-222.868002,0.00021917,2]
[328788914,1717788465714,-500.0,0.00021917,3]
[328788915,1717788465738,-222.868002,0.00021917,2]
[328788916,1717788465761,-222.868002,0.00021917,2]
[328788917,1717788465786,-222.868002,0.00021917,2]
[328788918,1717788465810,-222.868002,0.00021917,2]
[328788919,1717788465834,-222.868002,0.00021917,2]
[328788920,1717788465858,-222.867996,0.00021917,2]
[328788921,1717788465880,-151.0,0.00021918,2]
[328788922,1717788465905,-292.526787,0.00021918,2]
[328788923,1717788465929,-151.0,0.00021918,2]
[328788924,1717788465952,-151.0,0.00021918,2]
[328788925,1717788465975,-151.0,0.00021918,2]
[328788926,1717788465997,-151.0,0.00021918,2]
[328788927,1717788466027,-151.0,0.00021918,2]
[328788928,1717788466050,-151.0,0.00021918,2]
[328788929,1717788466075,-151.0,0.00021918,2]
[328788930,1717788466099,-151.0,0.00021918,2]
[328788931,1717788466122,-151.0,0.00021918,2]
[328788932,1717788466145,-151.0,0.00021918,2]
[328788933,1717788466169,-180.564873,0.00021918,2]
[328788934,1717788466192,-166.666666,0.00021918,2]
[328788935,1717788466217,-1000.0,0.00022,4]
[328788936,1717788466239,-31881.11729423,0.00022,2]
[328788937,1717788466261,-596.0,0.00022,2]
[328788938,1717788466282,-834.0,0.000221,2]
[328788939,1717788466304,-437.6073717,0.00022139,2]
[328788940,1717788466326,-153.0,0.00022139,2]
[328788941,1717788466348,-500.0,0.00022191,3]
[328788942,1717788466372,-500.0,0.00022191,3]
[328788943,1717788466394,-150.17553531,0.00022191,3]
[328788944,1717788466418,-500.0,0.00022191,3]
[328788945,1717788466440,-605.88568448,0.00022191,3]
[328788946,1717788466461,-500.0,0.00022191,3]
[328788947,1717788466484,-500.0,0.00022191,3]
[328788948,1717788466508,-500.0,0.00022191,3]
[328788949,1717788466533,-500.0,0.00022191,3]
[328788950,1717788466554,-500.0,0.00022191,3]
[328788951,1717788466578,-500.0,0.00022191,3]
[328788952,1717788466601,-500.0,0.00022191,3]
[328788953,1717788466625,-500.0,0.00022191,3]
[328788954,1717788466649,-500.0,0.00022191,3]
[328788955,1717788466791,-984.83,0.00022191,3]
[328788956,1717788466812,-500.0,0.00022191,3]
[328788957,1717788466833,-437.74896274,0.00022191,3]
[328788958,1717788466854,-508.4755717,0.00022191,3]
[328788959,1717788466875,-2200.34,0.00022191,4]
[328788960,1717788466896,-1037.42,0.00022191,3]
[328788961,1717788466919,-500.0,0.00022191,3]
[328788962,1717788466939,-514.94367236,0.00022191,3]
[328788963,1717788466960,-500.0,0.00022191,3]
[328788964,1717788466982,-500.0,0.00022191,3]
[328788965,1717788467003,-579.25,0.00022191,3]
[328788966,1717788467025,-500.0,0.00022191,3]
[328788967,1717788467047,-500.0,0.00022191,3]
[328788968,1717788467070,-500.0,0.00022191,3]
[328788969,1717788467093,-500.0,0.00022191,3]
[328788970,1717788467114,-500.0,0.00022191,3]
[328788972,1717788467143,-500.0,0.00022191,3]
[328788973,1717788467167,-500.0,0.00022191,3]
[328788974,1717788467191,-500.0,0.00022191,3]
[328788975,1717788467214,-506.28019905,0.00022191,3]
[328788976,1717788467236,-500.0,0.00022191,3]
[328788977,1717788467258,-946.61,0.00022191,3]
[328788978,1717788467280,-500.0,0.00022191,3]
[328788979,1717788467302,-626.27,0.00022191,3]
[328788980,1717788467324,-506.20327038,0.00022191,3]
[328788981,1717788467345,-1037.33500056,0.00022191,3]
[328788982,1717788467366,-500.0,0.00022191,3]
[328788983,1717788467387,-500.0,0.00022191,3]
[328788984,1717788467411,-500.0,0.00022191,3]
[328788985,1717788467433,-500.0,0.00022191,3]
[328788986,1717788467454,-554.86854701,0.00022191,3]
[328788987,1717788467476,-500.0,0.00022191,3]
[328788988,1717788467498,-500.0,0.00022191,3]
[328788989,1717788467527,-501.34184574,0.00022191,3]
[328788990,1717788467548,-2476.83,0.00022191,3]
[328788991,1717788467572,-500.0,0.00022191,3]
[328788992,1717788467594,-500.0,0.00022191,3]
[328788993,1717788467615,-435.30006932,0.00022191,3]
[328788994,1717788467639,-500.0,0.00022191,3]
[328788995,1717788467666,-500.0,0.00022191,3]
[328788996,1717788467689,-500.0,0.00022191,3]
[328788997,1717788467711,-500.0,0.00022191,3]
[328788998,1717788467735,-500.0,0.00022191,3]
[328788999,1717788467759,-231.73320359,0.00022191,3]
[328789000,1717788467781,-184.12184476,0.00022191,3]
[328789001,1717788467803,-503.26048599,0.00022191,3]
[328789002,1717788467825,-503.46,0.00022191,3]
[328789003,1717788467848,-500.0,0.00022191,3]
[328789004,1717788467870,-509.64020275,0.00022191,3]
[328789005,1717788467892,-500.0,0.00022191,3]
[328789006,1717788467916,-1697.02,0.00022191,3]
[328789007,1717788467937,-500.0,0.00022191,3]
[328789008,1717788467958,-500.0,0.00022191,3]
[328789009,1717788467980,-500.0,0.00022191,3]
[328789010,1717788468002,-531.56622973,0.00022191,3]
[328789011,1717788468024,-500.0,0.00022191,3]
[328789012,1717788468046,-500.0,0.00022191,3]
[328789013,1717788468068,-500.0,0.00022191,3]
[328789014,1717788468090,-465.93212605,0.00022191,3]
[328789015,1717788468112,-500.0,0.00022191,3]
[328789016,1717788468134,-528.93104422,0.00022191,3]
[328789017,1717788468158,-539.61885824,0.00022191,3]
[328789018,1717788468179,-500.0,0.00022191,3]
[328789019,1717788468201,-500.0,0.00022191,2]
[328789020,1717788468222,-976.26,0.00022191,3]
[328789021,1717788468244,-157.94426797,0.00022191,3]
[328789022,1717788468266,-888.91,0.00022191,3]
[328789023,1717788468287,-200.0,0.00022191,3]
[328789024,1717788468308,-500.0,0.00022191,3]
[328789025,1717788468332,-502.99944822,0.00022191,3]
[328789026,1717788468352,-231.1199333,0.00022191,3]
[328789027,1717788468373,-1240.35,0.00022191,3]
[328789028,1717788468396,-500.0,0.00022191,3]
[328789029,1717788468419,-500.0,0.00022191,3]
[328789030,1717788468440,-500.0,0.00022191,3]
[328789031,1717788468461,-1622.15,0.00022191,3]
[328789032,1717788468483,-500.0,0.00022191,3]
[328789033,1717788468504,-477.65078343,0.00022191,3]
[328789034,1717788468528,-500.0,0.00022191,3]
[328789035,1717788468551,-502.09040866,0.00022191,3]
[328789036,1717788468573,-500.0,0.00022191,3]
[328789037,1717788468596,-500.0,0.00022191,3]
[328789038,1717788468620,-500.0,0.00022191,3]
[328789039,1717788468642,-500.0,0.00022191,3]
[328789040,1717788468665,-500.0,0.00022191,3]
[328789041,1717788468687,-500.0,0.00022191,3]
[328789042,1717788468708,-500.0,0.00022191,3]
[328789043,1717788468729,-500.0,0.00022191,3]
[328789044,1717788468751,-730.93,0.00022191,3]
[328789045,1717788468773,-500.0,0.00022191,3]
[328789046,1717788468796,-500.0,0.00022191,3]
[328789047,1717788468819,-631.85,0.00022191,3]
[328789048,1717788468840,-500.0,0.00022191,3]
[328789049,1717788468862,-500.0,0.00022191,3]
[328789050,1717788468977,-500.0,0.00022191,3]
[328789051,1717788469000,-691.36,0.00022191,3]
[328789052,1717788469021,-500.0,0.00022191,3]
[328789053,1717788469044,-500.0,0.00022191,3]
[328789054,1717788469067,-500.0,0.00022191,3]
[328789055,1717788469091,-501.67,0.00022191,3]
[328789056,1717788469114,-502.11738589,0.00022191,3]
[328789057,1717788469138,-500.0,0.00022191,3]
[328789058,1717788469163,-500.0,0.00022191,3]
[328789059,1717788469184,-502.60970875,0.00022191,3]
[328789060,1717788469206,-345.86076529,0.00022191,3]
[328789061,1717788469230,-500.0,0.00022191,3]
[328789062,1717788469256,-755.0,0.00022191,3]
[328789063,1717788469278,-500.0,0.00022191,3]
[328789064,1717788469300,-3598.63,0.00022191,3]
[328789065,1717788469323,-500.0,0.00022191,3]
[328789066,1717788469346,-515.29112198,0.00022191,3]
[328789067,1717788469367,-820.32,0.00022191,3]
[328789068,1717788469390,-500.0,0.00022191,3]
[328789069,1717788469415,-500.0,0.00022191,3]
[328789070,1717788469436,-500.0,0.00022191,3]
[328789071,1717788469458,-500.0,0.00022191,3]
[328789072,1717788469479,-500.0,0.00022191,3]
[328789073,1717788469500,-500.0,0.00022191,3]
[328789074,1717788469528,-500.0,0.00022191,3]
[328789075,1717788469552,-500.0,0.00022191,3]
[328789076,1717788469574,-500.0,0.00022191,3]
[328789077,1717788469600,-500.0,0.00022191,3]
[328789078,1717788469623,-846.97,0.00022191,3]
[328789079,1717788469645,-1402.42,0.00022191,3]
[328789080,1717788469668,-500.0,0.00022191,3]
[328789081,1717788469690,-669.73,0.00022191,2]
[328789082,1717788469718,-922.91,0.00022191,3]
[328789083,1717788469741,-539.67,0.00022191,3]
[328789084,1717788469764,-425.27929339,0.00022191,3]
[328789085,1717788469785,-505.29136302,0.00022191,3]
[328789086,1717788469808,-959.65,0.00022191,3]
[328789087,1717788469830,-254.70971764,0.00022191,3]
[328789088,1717788469852,-500.0,0.00022191,3]
[328789089,1717788469874,-500.0,0.00022191,3]
[328789090,1717788469897,-533.21,0.00022191,3]
[328789091,1717788469922,-500.0,0.00022191,3]
[328789092,1717788469944,-500.0,0.00022191,3]
[328789093,1717788469966,-500.0,0.00022191,3]
[328789094,1717788469988,-500.0,0.00022191,3]
[328789095,1717788470011,-500.0,0.00022191,3]
[328789096,1717788470033,-503.32,0.00022191,3]
[328789097,1717788470056,-500.0,0.00022191,3]
[328789098,1717788470078,-506.27506844,0.00022191,3]
[328789099,1717788470101,-500.0,0.00022191,3]
[328789100,1717788470123,-500.0,0.00022191,3]
[328789101,1717788470146,-500.0,0.00022191,3]
[328789102,1717788470172,-500.0,0.00022191,3]
[328789103,1717788470194,-534.38722632,0.00022191,3]
[328789104,1717788470217,-503.60921208,0.00022191,3]
[328789105,1717788470240,-2095.55,0.00022191,3]
[328789106,1717788470264,-500.0,0.00022191,3]
[328789107,1717788470291,-500.0,0.00022191,3]
[328789108,1717788470314,-609.5,0.00022191,3]
[328789109,1717788470336,-500.0,0.00022191,3]
[328789110,1717788470359,-505.94368228,0.00022191,3]
[328789111,1717788470383,-500.0,0.00022191,3]
[328789112,1717788470408,-500.0,0.00022191,3]
[328789113,1717788470434,-1327.87,0.00022191,3]
[328789114,1717788470458,-500.0,0.00022191,3]
[328789115,1717788470480,-500.0,0.00022191,3]
[328789116,1717788470501,-500.0,0.00022191,3]
[328789117,1717788470528,-1110.1,0.00022191,3]
[328789118,1717788470553,-500.0,0.00022191,3]
[328789119,1717788470577,-500.0,0.00022191,3]
[328789120,1717788470601,-500.0,0.00022191,3]
[328789121,1717788470624,-500.0,0.00022191,3]
[328789122,1717788470646,-500.0,0.00022191,3]
[328789123,1717788470671,-500.0,0.00022191,3]
[328789124,1717788470693,-649.56,0.00022191,3]
[328789125,1717788470716,-500.0,0.00022191,3]
[328789126,1717788470739,-500.0,0.00022191,3]
[328789127,1717788470765,-500.0,0.00022191,3]
[328789128,1717788470787,-618.18,0.00022191,3]
[328789129,1717788470809,-500.0,0.00022191,3]
[328789130,1717788470830,-546.45897288,0.00022191,3]
[328789131,1717788470853,-775.44,0.00022191,3]
[328789132,1717788470876,-1084.89,0.00022191,3]
[328789133,1717788470898,-500.0,0.00022191,3]
[328789134,1717788470922,-500.0,0.00022191,3]
[328789135,1717788470947,-770.83,0.00022191,3]
[328789136,1717788470970,-2931.57,0.00022191,3]
[328789137,1717788470992,-521.9529511,0.00022191,3]
[328789138,1717788471015,-500.0,0.00022191,3]
[328789139,1717788471038,-500.0,0.00022191,3]
[328789140,1717788471061,-500.0,0.00022191,3]
[328789141,1717788471177,-500.0,0.00022191,3]
[328789142,1717788471200,-507.29369947,0.00022191,3]
[328789143,1717788471224,-1007.37,0.00022191,3]
[328789144,1717788471246,-500.0,0.00022191,3]
[328789145,1717788471271,-500.0,0.00022191,3]
[328789146,1717788471295,-500.0,0.00022191,3]
[328789147,1717788471322,-500.0,0.00022191,3]
[328789148,1717788471346,-500.0,0.00022191,3]
[328789149,1717788471368,-500.0,0.00022191,3]
[328789150,1717788471391,-500.0,0.00022191,3]
[328789151,1717788471415,-500.0,0.00022191,3]
[328789152,1717788471438,-825.9,0.00022191,3]
[328789153,1717788471460,-1147.11,0.00022191,3]
[328789154,1717788471482,-934.76,0.00022191,3]
[328789155,1717788471504,-500.0,0.00022191,3]
[328789156,1717788471532,-500.0,0.00022191,3]
[328789157,1717788471556,-500.0,0.00022191,3]
[328789158,1717788471582,-500.0,0.00022191,3]
[328789159,1717788471607,-500.0,0.00022191,3]
[328789160,1717788471630,-2163.53,0.00022191,3]
[328789161,1717788471652,-528.17454433,0.00022191,3]
[328789162,1717788471675,-500.0,0.00022191,3]
[328789163,1717788471697,-500.0,0.00022191,3]
[328789164,1717788471721,-791.73,0.00022191,3]
[328789165,1717788471746,-754.67,0.00022191,3]
[328789166,1717788471769,-500.0,0.00022191,3]
[328789167,1717788471792,-500.0,0.00022191,2]
[328789168,1717788471816,-500.0,0.00022191,3]
[328789169,1717788471839,-500.0,0.00022191,3]
[328789170,1717788471862,-500.0,0.00022191,3]
[328789171,1717788471885,-1202.49,0.00022191,3]
[328789172,1717788471911,-1135.48,0.00022191,3]
[328789173,1717788471934,-3915.86,0.00022191,3]
[328789174,1717788471957,-500.0,0.00022191,3]
[328789175,1717788471979,-500.0,0.00022191,3]
[328789176,1717788472004,-500.0,0.00022191,3]
[328789177,1717788472028,-500.0,0.00022191,3]
[328789178,1717788472051,-652.74,0.00022191,3]
[328789179,1717788472075,-1587.51,0.00022191,3]
[328789180,1717788472100,-561.67343679,0.00022191,3]
[328789181,1717788472127,-501.35645864,0.00022191,3]
[328789182,1717788472150,-2730.58,0.00022191,3]
[328789183,1717788472174,-500.0,0.00022191,3]
[328789184,1717788472196,-529.74141175,0.00022191,3]
[328789185,1717788472219,-2712.97,0.00022191,3]
[328789186,1717788472245,-702.04,0.00022191,3]
[328789187,1717788472268,-1716.37,0.00022191,3]
[328789188,1717788472292,-518.38,0.00022191,3]
[328789189,1717788472317,-500.0,0.00022191,3]
[328789190,1717788472341,-500.0,0.00022191,3]
[328789191,1717788472366,-500.0,0.00022191,3]
[328789192,1717788472388,-224.43702884,0.00022191,3]
[328789193,1717788472413,-1150.37,0.00022191,3]
[328789194,1717788472437,-538.07,0.00022191,3]
[328789195,1717788472460,-1111.91,0.00022191,3]
[328789196,1717788472483,-618.8260792,0.00022191,3]
[328789197,1717788472506,-500.0,0.00022191,3]
[328789198,1717788472533,-5314.24,0.00022191,3]
[328789199,1717788472555,-608.14659228,0.00022191,3]
[328789200,1717788472579,-500.0,0.00022191,3]
[328789201,1717788472602,-500.0,0.00022191,3]
[328789202,1717788472625,-1413.09,0.00022191,3]
[328789203,1717788472648,-500.0,0.00022191,3]
[328789204,1717788472672,-500.0,0.00022191,3]
[328789205,1717788472696,-500.0,0.00022191,3]
[328789206,1717788472722,-500.0,0.00022191,3]
[328789207,1717788472746,-5792.96,0.00022191,3]
[328789208,1717788472769,-412.73110143,0.00022191,3]
[328789209,1717788472793,-500.0,0.00022191,3]
[328789210,1717788472819,-26616.55,0.00022191,3]
[328789211,1717788472841,-2670.12,0.00022191,3]
[328789212,1717788472864,-502.91577793,0.00022191,3]
[328789213,1717788472887,-500.0,0.00022191,3]
[328789214,1717788472911,-610.87,0.00022191,3]
[328789215,1717788472934,-2169.23,0.00022191,3]
[328789216,1717788472956,-500.0,0.00022191,3]
[328789217,1717788472979,-500.0,0.00022191,3]
[328789218,1717788473001,-500.0,0.00022191,3]
[328789219,1717788473024,-500.0,0.00022191,3]
[328789220,1717788473047,-5832.79,0.00022191,3]
[328789221,1717788473073,-500.0,0.00022191,3]
[328789222,1717788473096,-731.56,0.00022191,3]
[328789223,1717788473121,-500.0,0.00022191,3]
[328789224,1717788473146,-500.0,0.00022191,3]
[328789225,1717788473170,-2778.67,0.00022191,3]
[328789226,1717788473194,-500.0,0.00022191,3]
[328789227,1717788473220,-500.0,0.00022191,3]
[328789228,1717788473319,-2884.02,0.00022191,3]
[328789229,1717788473358,-511.68659446,0.00022191,3]
[328789230,1717788473381,-503.24138287,0.00022191,3]
[328789231,1717788473404,-654.11,0.00022191,3]
[328789232,1717788473427,-1545.3,0.00022191,3]
[328789233,1717788473453,-655.89,0.00022191,3]
[328789234,1717788473477,-635.00807732,0.00022191,3]
[328789235,1717788473499,-506.49385966,0.00022191,3]
[328789236,1717788473528,-2816.4,0.00022191,3]
[328789237,1717788473554,-500.0,0.00022191,3]
[328789238,1717788473576,-1016.62,0.00022191,3]
[328789239,1717788473599,-500.0,0.00022191,3]
[328789240,1717788473620,-532.94649179,0.00022191,3]
[328789241,1717788473644,-500.0,0.00022191,3]
[328789242,1717788473667,-857.34,0.00022191,3]
[328789243,1717788473688,-500.0,0.00022191,3]
[328789244,1717788473711,-500.0,0.00022191,3]
[328789245,1717788473734,-4404.71364884,0.00022191,3]
[328789250,1717788545654,114.65020217,0.00023241,120]
[328789251,1717788545677,36.27433556,0.00023241,120]
[328789259,1717788635232,-151.0,0.00020304,3]
[328789262,1717788635243,-151.0,0.00020806,5]
[328789263,1717788635253,-151.0,0.00021309,5]
[328789265,1717788635263,-2.17898741,0.00021809,2]
[328789267,1717788635275,-403.47647743,0.00021809,2]
[328789269,1717788635287,-2081.6,0.00021809,2]
[328789272,1717788635360,-4882.32193084,0.00021809,2]
[328789273,1717788635370,-151.0,0.00021812,5]
[328789274,1717788635380,-984.6306129,0.00021813,2]
[328789275,1717788635390,-285.27254872,0.00021816,2]
[328789276,1717788635400,-605.7366531,0.00021915,2]
[328789277,1717788635409,-7913.37404345,0.00021915,2]
[328789278,1717788635420,-9582.6962167,0.00021915,2]
[328789279,1717788635430,-157.03683052,0.00021915,2]
[328789280,1717788635440,-155.47243291,0.00021916,2]
[328789281,1717788635451,-6975.15873086,0.00021916,2]
[328789282,1717788637753,-794.36569708,0.00021916,2]
[328789283,1717788637780,-638.5628782,0.00021916,2]
[328789284,1717788637798,-2126.79343232,0.00021916,2]
[328789285,1717788637810,-21712.03443069,0.00021916,2]
[328789286,1717788637821,-282.86059484,0.00021916,2]
[328789287,1717788637833,-500.0,0.00021916,2]
[328789288,1717788637844,-288.53479316,0.00021916,2]
[328789289,1717788637856,-500.0,0.00021916,2]
[328789290,1717788637867,-500.0,0.00021916,2]
[328789291,1717788637879,-261.0311724,0.00021916,2]
[328789292,1717788637891,-636.65818952,0.00021916,2]
[328789293,1717788637902,-558.53222201,0.00021916,2]
[328789294,1717788637913,-500.0,0.00021916,2]
[328789295,1717788637925,-651.14523522,0.00021916,2]
[328789296,1717788637936,-500.0,0.00021916,2]
[328789297,1717788637947,-500.0,0.00021916,2]
[328789298,1717788637958,-500.0,0.00021916,2]
[328789299,1717788637968,-500.0,0.00021916,2]
[328789300,1717788637979,-500.0,0.00021916,2]
[328789301,1717788637990,-50.15023291,0.00021916,2]
[328789302,1717788638007,-449.84976709,0.00021916,2]
[328789303,1717788638017,-500.0,0.00021916,2]
[328789304,1717788638027,-500.0,0.00021916,2]
[328789305,1717788638038,-500.0,0.00021916,2]
[328789306,1717788638053,-500.0,0.00021917,3]
[328789307,1717788638063,-500.0,0.00021917,3]
[328789308,1717788638073,-1983.24,0.00021917,3]
[328789309,1717788638083,-215.12910443,0.00021917,3]
[328789570,1717788644491,-1302.5,0.00020805,2]
[328789575,1717788644501,-284.87089557,0.00021917,3]
[328789577,1717788644512,-500.0,0.00021917,3]
[328789581,1717788644522,-691.78,0.00021917,3]
[328789586,1717788644532,-1573.34,0.00021917,3]
[328789590,1717788644542,-500.0,0.00021917,3]
[328789596,1717788644555,-500.0,0.00021917,3]
[328789601,1717788644565,-500.0,0.00021917,3]
[328789607,1717788644579,-11918.20798192,0.00021917,2]
[328789610,1717788644589,-511.64164149,0.00021917,3]
[328789614,1717788644599,-4871.39,0.00021917,3]
[328789618,1717788644610,-500.0,0.00021917,3]
[328789621,1717788644620,-500.0,0.00021917,3]
[328789622,1717788644629,-2016.97,0.00021917,4]
[328789624,1717788644639,-1102.29,0.00021917,3]
[328789626,1717788644651,-514.36138538,0.00021917,3]
[328789629,1717788644662,-500.0,0.00021917,3]
[328789630,1717788644672,-500.0,0.00021917,3]
[328789632,1717788644682,-500.0,0.00021917,3]
[328789634,1717788644692,-500.0,0.00021917,3]
[328789636,1717788644701,-1040.86,0.00021917,3]
[328789637,1717788644711,-1486.97,0.00021917,3]
[328789639,1717788644721,-444.20479792,0.00021917,3]
[328789641,1717788644731,-488.12369135,0.00021917,3]
[328790605,1717788653518,-42.85630865,0.00021917,3]
[328790606,1717788653528,-500.0,0.00021917,3]
[328790607,1717788653538,-500.0,0.00021917,3]
[328790608,1717788653548,-643.54,0.00021917,3]
[328790611,1717788653561,-500.0,0.00021917,3]
[328790613,1717788653572,-500.0,0.00021917,3]
[328790615,1717788653582,-546.13,0.00021917,3]
[328790616,1717788653592,-670.02,0.00021917,3]
[328790619,1717788653601,-500.0,0.00021917,3]
[328790620,1717788653612,-500.0,0.00021917,3]
[328790622,1717788653621,-500.0,0.00021917,3]
[328790624,1717788653631,-950.97,0.00021917,3]
[328790626,1717788653640,-559.96,0.00021917,3]
[328790628,1717788653652,-565.0,0.00021917,3]
[328790630,1717788653661,-601.23,0.00021917,3]
[328790632,1717788653670,-3259.76978535,0.00021917,3]
[328790644,1717788653774,-2050.44021465,0.00021917,3]
[328790646,1717788653784,-10161.81585538,0.00021917,3]
[328790648,1717788653795,-543.29414462,0.00021917,3]
[328790650,1717788653805,-500.0,0.00021917,3]
[328790652,1717788653816,-500.0,0.00021917,3]
[328790654,1717788653825,-5346.73,0.00021917,3]
[328790656,1717788653835,-670.6,0.00021917,3]
[328790658,1717788653844,-500.0,0.00021917,3]
[328790660,1717788653853,-2581.7,0.00021917,3]
[328790662,1717788653863,-500.0,0.00021917,3]
[328790664,1717788653872,-1750.75358162,0.00021917,3]
[328790769,1717788654903,-892.93641838,0.00021917,3]
[328790771,1717788654913,-500.0,0.00021917,3]
[328790773,1717788654923,-734.97,0.00021917,3]
[328790775,1717788654933,-5886.11,0.00021917,3]
[328790777,1717788654943,-931.9,0.00021917,3]
[328790779,1717788654953,-423.86114168,0.00021917,3]
[328790781,1717788654963,-11470.84,0.00021917,3]
[328790782,1717788654973,-500.0,0.00021917,3]
[328790785,1717788654983,-500.0,0.00021917,3]
[328790786,1717788654993,-500.0,0.00021917,3]
[328790788,1717788655003,-585.806093,0.00021917,3]
[328790790,1717788655014,-3298.74,0.00021917,3]
[328790792,1717788655023,-2849.06,0.00021917,3]
[328790794,1717788655033,-5982.73377254,0.00021917,3]
[328790926,1717788656669,-418.15622746,0.00021917,3]
[328790928,1717788656681,-480.5464934,0.00021917,3]
[328790931,1717788656697,-19.4535066,0.00021917,3]
[328790933,1717788656709,-545.38107419,0.00021917,3]
[328792882,1717788683188,157.66978397,9.999e-05,2]
[328792883,1717788714158,923.79132463,0.00014,2]
[328792917,1717789166558,150.92453773,0.00022843,120]
[328792922,1717789425891,150.93962415,0.00022877,120]
[328793099,1717789595183,-4318.71066084,0.00017,4]
[328793100,1717789595205,-3913.5924129,0.00019551,2]
[328793112,1717789652120,-20986.4075871,0.00019551,2]
[328793113,1717789652141,-286.55912829,0.00019551,2]
[328793114,1717789652161,-1130.15975246,0.00019817,2]
[328793115,1717789652188,-1395.1078349,0.0002,10]
[328793116,1717789654127,150.92453773,0.00022917,120]
[328793287,1717789836081,-398.8,0.000189,2]
[328793288,1717789836096,-354.63983497,0.000189,2]
[328793289,1717789836106,-286.42661055,0.00019551,2]
[328793290,1717789836116,-1604.8921651,0.0002,10]
[328793291,1717789836125,-528.82048607,0.0002009,4]
[328793292,1717789836135,-590.27173926,0.0002066,7]
[328793293,1717789836144,-232.66653955,0.00020819,2]
[328793294,1717789836154,-7369.57739568,0.00021,2]
[328793295,1717789836164,-153.0,0.00021178,2]
[328793296,1717789836173,-153.0,0.00021378,2]
[328793297,1717789836183,-584.2176278,0.00021378,2]
[328793298,1717789836192,-306.0,0.00021378,2]
[328793299,1717789836202,-150.0,0.000215,2]
[328793300,1717789836212,-292.3309227,0.00021644,2]
[328793301,1717789836221,-151.0,0.00021814,5]
[328793302,1717789836231,-558.31925518,0.00021817,2]
[328793303,1717789836241,-744.34343992,0.00021817,2]
[328793304,1717789836252,-205.1978842,0.00021844,2]
[328793305,1717789836262,-410.3957684,0.00021844,2]
[328793306,1717789836272,-205.1978842,0.00021844,2]
[328793307,1717789836281,-409.0619738,0.00021844,2]
[328793308,1717789836292,-935.42424331,0.000219,2]
[328793309,1717789836301,-981.64697756,0.00021915,2]